Cogmind - Beta 13 @@@ ROGUE MODE // 2024.02.28 @ 13:39:09 Player: Minty Result: Destroyed by K0-SJC(R) with Subdweller Beam Cannon Performance ------------- Evolutions (0) 0 Regions Visited (2) 400 Robots Destroyed (25) 125 Value Destroyed (635) 635 Prototype IDs (2) 40 Alien Tech Used (0) 0 Bonus (0) 0 TOTAL SCORE: 1200 Bonus ------- None Cogmind --------- Core Integrity 0/250 Matter 162/300 Energy 232/250 System Corruption 3% Temperature Cool (9) Movement Rolling (125) Ox3 Location -10/Subcaves Parts ------- > --- POWER (1) -------- Ion Engine > --- PROPULSION (2) --- Makeshift Leg Wheel > --- UTILITY (2) ------ Large Storage Unit > --- WEAPON (2) ------- Subdweller Laser Heavy Hammer > --- INVENTORY (15) --- Ion Engine Light Nuclear Core Wheel Cooling System Large Storage Unit High-capacity Battery (250) High-capacity Matter Pod (200) Structural Scanner Signal Interpreter Beam Rifle Beam Rifle Heavy Hammer Piercing Trap Piercing Trap Peak State ------------ > --- POWER ------------ Ion Engine > --- PROPULSION ------- Makeshift Leg Makeshift Leg > --- UTILITY ---------- Large Storage Unit Sensor Array > --- WEAPON ----------- Beam Rifle Beam Rifle > --- INVENTORY -------- Ion Engine Light Nuclear Core Makeshift Leg Wheel Cooling System Large Storage Unit High-capacity Battery High-capacity Matter Pod Structural Scanner Signal Interpreter Grenade Launcher Grenade Launcher Heavy Hammer Heavy Hammer Piercing Trap [Rating: 17] Favorites ----------- Power Ion Engine Engine Ion Engine Propulsion Light Treads Treads Light Treads Leg Makeshift Leg Wheel Wheel Utility Large Storage Unit Device Sensor Array Storage Large Storage Unit Weapon Beam Rifle Energy Gun Beam Rifle Ballistic Gun Assault Rifle Launcher Grenade Launcher Impact Weapon Heavy Hammer Build | -11 -10 -10 ------- Run | Yrd Mat Sub Slots Evolved . | . . . Power . | . . . Propulsion . | . . . Utility . | . . . Weapon . | . . . Parts Attached 31 | . 13 18 Power 3 | . 2 1 Engine 3 | . 2 1 Core . | . . . Reactor . | . . . Propulsion 11 | . 2 9 Treads 2 | . 2 . Leg 4 | . . 4 Wheel 5 | . . 5 Hover . | . . . Flight . | . . . Utility 5 | . 4 1 Device 3 | . 2 1 Storage 2 | . 2 . Processor . | . . . Hackware . | . . . Protection . | . . . Artifact . | . . . Weapon 12 | . 5 7 Energy Gun 6 | . 3 3 Energy Cannon . | . . . Ballistic Gun . | . . . Ballistic Cannon . | . . . Launcher 3 | . . 3 Special Weapon . | . . . Impact Weapon 3 | . 2 1 Slashing Weapon . | . . . Piercing Weapon . | . . . Special Melee Weapon . | . . . Unidentified Prototypes . | . . . Parts Lost 6 | . . 6 Power . | . . . Propulsion 3 | . . 3 Utility 1 | . . 1 Weapon 2 | . . 2 Highest Loss Streak 3 | . . 3 To Critical Strikes 1 | . . 1 Average Slot Usage (%) 98 | . 97 98 Engine 14 | . 14 14 Treads 20 | . 27 11 Leg 5 | . . 11 Wheel 2 | . . 4 Device 12 | . 11 13 Storage 14 | . 14 14 Energy Gun 19 | . 17 21 Ballistic Gun 4 | . 8 . Launcher 1 | . . 3 Impact Weapon 2 | . 1 3 Naked Turns . | . . . Heaviest Build 32 | 14 32 32 Greatest Support 40 | 20 40 40 Greatest Overweight (x) 2 | . 1 2 Average Overweight (x) . | . . . Largest Inventory Capacity 15 | . 15 15 Average Capacity 14 | . 14 15 Most Carried 15 | . 15 15 Average Carried 14 | . 13 14 Final Capacity 15 | 8 15 15 Final Carried 15 | 6 15 14 Class Distribution -------------------- 98% | Mutant Dominant Class ---------------- Mutant | -10/Materials Mutant | -10/Subcaves Resources | -11 -10 -10 ----------- Run | Yrd Mat Sub Matter Collected 744 | 200 381 163 Remotely . | . . . Salvage Created 914 | . 664 250 Parts 48 | . 38 10 Haulers Intercepted 2 | . 2 . Recyclers Shooed 1 | . 1 . Parts Field Recycled . | . . . Retrieved Matter . | . . . Parts Self-Destructed 6 | . . 6 Prevented . | . . . Kills | -11 -10 -10 ------- Run | Yrd Mat Sub Combat Hostiles Destroyed 16 | . 9 7 Guns 11 | . 8 3 AOE 5 | . 1 4 Classes Destroyed 11 | . 6 5 Worker 2 | . 2 . Tunneler 1 | . 1 . Hauler 2 | . 2 . Recycler 1 | . 1 . Turret 2 | . . 2 Watcher 1 | . 1 . Swarmer 3 | . . 3 Grunt 9 | . 9 . Sentry 1 | . . 1 Artisan 1 | . . 1 Subdweller 3 | . . 3 Best Kill Streak 5 | . 5 4 Combat Bots Only 4 | . 4 3 Max Kills in Single Turn 2 | . 2 1 Gunslinging . | . . . Exploded 1 | . 1 1 Melee . | . . . Uniques/NPCs Destroyed . | . . . Combat | -11 -10 -10 -------- Run | Yrd Mat Sub Hostile Shots Fired 113 | . 42 71 Missed 37 | . 16 21 Damage Taken 1305 | . 306 999 Core 257 | . 56 201 Absorbed by Shields . | . . . Core Remaining (%) 100 | 100 . . Volleys Fired 64 | . 37 27 Largest 2 | . 2 2 Hottest 112 | . 112 112 Shots Fired 122 | . 74 48 Gun 113 | . 74 39 Cannon . | . . . Launcher 9 | . . 9 Special . | . . . Kinetic 24 | . 24 . Thermal 65 | . 26 39 Explosive 9 | . . 9 Electromagnetic 24 | . 24 . Robot Hit Streak 15 | . 14 15 Robot Miss Streak 4 | . 4 2 Penetration Max . | . . . Secondary Targets 3 | . 3 . Max Gunslinging Chain 1 | . 1 . Shots Hit Robots 89 | . 50 39 Core Hits 43 | . 25 18 Critical Kills 1 | . 1 . Critical Parts Destroyed . | . . . Critical Strikes 3 | . 1 2 Burn 1 | . . 1 Destroy 1 | . 1 . Smash 1 | . . 1 Melee Attacks 10 | . 4 6 Impact 10 | . 4 6 Slashing . | . . . Piercing . | . . . Sneak Attacks 3 | . 2 1 Combat Hostiles 1 | . . 1 Follow-up Attacks . | . . . Damage Inflicted 2031 | . 905 1126 Guns 1037 | . 658 379 Cannons . | . . . Explosions 531 | . 58 473 Melee 463 | . 189 274 Ramming . | . . . Kinetic 199 | . 199 . Thermal 685 | . 306 379 Explosive 473 | . . 473 Electromagnetic 211 | . 211 . Impact 463 | . 189 274 Slashing . | . . . Piercing . | . . . Highest Corruption 3 | . 3 3 Average Corruption 2 | . 2 3 Corruption Purged . | . . . Corruption Blocked . | . . . Effects 27 | . 11 16 Message Errors 10 | . 4 6 Matter Fused 5 | . 2 3 Heat Flow Errors 4 | . 2 2 Energy Discharges 3 | . 1 2 Data Loss (minor) 2 | . 1 1 Data Loss (major) 1 | . . 1 Misfires 1 | . . 1 Alerts 1 | . 1 . Overload Shots . | . . . Overflow Damage 90 | . 64 26 Projectiles . | . . . Explosions 26 | . . 26 Melee 64 | . 64 . Knockbacks 3 | . . 3 Impact 3 | . . 3 Kinetic . | . . . Secondary . | . . . Self-Inflicted Damage 175 | . . 175 Shots 7 | . . 7 Rammed . | . . . Targets Rammed . | . . . Kicked . | . . . Crushed . | . . . Highest Temperature 357 | . 357 175 Average Temperature 86 | . 99 38 Received Heat Transfer 459 | . 174 285 Siege Activations . | . . . Robots Corrupted . | . . . Combat Hostiles . | . . . Parts Fried 4 | . 4 . Impact Corruptions 2 | . 2 . Robots Melted . | . . . Combat Hostiles . | . . . Parts Melted 4 | . 2 2 Heat Transferred 1753 | . 729 1024 Parts Sabotaged . | . . . Parts Stolen . | . . . Parts Stripped . | . . . Power Chain Reactions 1 | . 1 . Alert | -11 -10 -10 ------- Run | Yrd Mat Sub Peak Influence 196 | . 196 . Initial . | . . . Average 83 | . 83 . Maximum Alert Level . | . . . Low Security (%) 100 | . 100 . Level 1 . | . . . Level 2 . | . . . Level 3 . | . . . Level 4 . | . . . Level 5 . | . . . High Security . | . . . Max Security . | . . . Squads Dispatched 2 | . 2 . Investigation 1 | . 1 . Extermination . | . . . Reinforcement 1 | . 1 . Assault . | . . . Garrison . | . . . Intercept . | . . . Searches Triggered . | . . . Construction Impeded . | . . . Haulers Reinforced . | . . . Active Scanning Responses . | . . . Cargo Convoy Interrupts . | . . . Stealth | -11 -10 -10 --------- Run | Yrd Mat Sub Distress Signals . | . . . Communications Jammed . | . . . Distress Signals . | . . . Times Spotted 43 | . 16 27 Peak Tracking Total 6 | . 4 6 Tactical Retreats 3 | . . 3 Traps | -11 -10 -10 ------- Run | Yrd Mat Sub Traps Triggered 3 | . 2 1 Indirectly . | . . . Trap Hack Attempts . | . . . Triggered . | . . . Disarmed . | . . . Reprogrammed . | . . . Reused . | . . . Traps Extracted . | . . . Installed 1 | . . 1 Triggered . | . . . Most Traps Carried 2 | . . 2 Machines | -11 -10 -10 ---------- Run | Yrd Mat Sub Machines Disabled 2 | . . 2 Max in Single Turn 1 | . . 1 Machines Repaired . | . . . Machines Dismantled . | . . . Machines Sabotaged . | . . . Overloaded Fab Kills . | . . . Hacking | -11 -10 -10 --------- Run | Yrd Mat Sub Machines Accessed 4 | . 4 . Terminals 3 | . 3 . Fabricators . | . . . Repair Stations . | . . . Recycling Units 1 | . 1 . Scanalyzers . | . . . Garrison Access . | . . . Total Hacks 11 | . 11 . Successful 7 | . 7 . Failed 4 | . 4 . Catastrophic 1 | . 1 . Database Lockouts . | . . . Manual 5 | . 5 . Terminals 8 | . 8 . Fabricators . | . . . Repair Stations . | . . . Recycling Units 3 | . 3 . Scanalyzers . | . . . Garrison Access . | . . . Terminal Hacks 4 | . 4 . Prototype ID Bank 1 | . 1 . Emergency Access Points 1 | . 1 . Maintenance Status 1 | . 1 . Patrol Status 1 | . 1 . Fabricator Hacks . | . . . Repair Station Hacks . | . . . Recycling Unit Hacks 2 | . 2 . Report Inventory 1 | . 1 . Retrieve Components 1 | . 1 . Scanalyzer . | . . . Garrison Access Hacks . | . . . Unauthorized Hacks 1 | . 1 . Terminals 1 | . 1 . Botnet 1 | . 1 . Fabricators . | . . . Repair Stations . | . . . Recycling Units . | . . . Scanalyzers . | . . . Garrison Access . | . . . Data Cores Recovered . | . . . Used . | . . . Hacking Detections 4 | . 4 . Full Trace Events 2 | . 2 . Feedback Events 1 | . 1 . Corruption 1 | . 1 . Feedback Blocked . | . . . Robot Schematics Acquired . | . . . Robots Built . | . . . Authchips . | . . . Time . | . . . Total Robot Build Rating . | . . . Part Schematics Acquired . | . . . Parts Built . | . . . Authchips . | . . . Time . | . . . Total Part Build Rating . | . . . Parts Repaired . | . . . Time . | . . . Parts Recycled . | . . . Recycled Matter . | . . . Retrieved Matter . | . . . Retrieved Components 2 | . 2 . Parts Scanalyzed . | . . . Part Schematics Acquired . | . . . Parts Damaged . | . . . Bothacking | -11 -10 -10 ------------ Run | Yrd Mat Sub Used RIF Installer . | . . . Robots Hacked . | . . . Non-combat . | . . . Combat . | . . . Robot Hacks Applied . | . . . Relay Couplers Released . | . . . Fabnet Peak Effective % . | . . . Robots Rewired . | . . . Allies Hacked . | . . . Hacks Repelled . | . . . Allies | -11 -10 -10 -------- Run | Yrd Mat Sub Total Allies . | . . . Largest Group . | . . . Highest-Rated Group . | . . . Highest-Rated Ally . | . . . Total Orders . | . . . Ally Attacks . | . . . Total Damage . | . . . Kills . | . . . Allies Corrupted . | . . . Allies Melted . | . . . Intel | -11 -10 -10 ------- Run | Yrd Mat Sub Robot Analysis Total . | . . . Derelict Logs Recovered 1 | . . 1 Drone Launches . | . . . Drone Recoveries . | . . . Exploration | -11 -10 -10 ------------- Run | Yrd Mat Sub Turns Passed 1894 | . 1005 889 Spaces Moved 997 | 1 463 533 Core . | . . . Treads 662 | . 451 211 Legs 241 | 1 12 228 Wheels 94 | . . 94 Hover . | . . . Flight . | . . . Fastest Speed 95 | 120 120 95 Average Speed 149 | 120 160 140 Slowest Speed 210 | 120 190 210 Overloaded Moves . | . . . Propulsion Burnouts . | . . . Robots Hopped . | . . . Cave-ins Triggered . | . . . Exploration Rate (%) 36 | 2 63 43 Regions Visited 2 Branch Regions 1 Pre-discovered Areas . | . . . Known Exits Taken . | . . . Unknown Exits Taken 2 | 1 1 . Scrap Searched . | . . . Spaces Dug . | . . . Terrain Destroyed 45 | . 5 40 Melee . | . . . Projectile . | . . . AOE 45 | . 5 40 Terrain Rammed . | . . . Walls Destroyed . | . . . Machines Disabled . | . . . Actions | -11 -10 -10 --------- Run | Yrd Mat Sub Total 1269 | . 654 615 Wait 118 | . 100 18 Move 995 | . 462 533 Hop . | . . . Pick Up 24 | . 18 6 Fast Attach 8 | . 6 2 Attach 7 | . 2 5 Detach 5 | . 5 . Swap 16 | . 5 11 Drop 21 | . 15 6 Fire 64 | . 37 27 Melee 10 | . 4 6 Ram . | . . . Kick . | . . . Crush . | . . . Escape Stasis . | . . . Rewire . | . . . Trap 1 | . . 1 Miscellaneous . | . . . Route ------- -11/Scrapyard -10/Materials (discovered 4 exits: [*Mat x3] / [*Sub]) -10/Subcaves (discovered 1 exit: [*Rec]) History --------- Turn | Location | Event 1 | -11/Scrapyard | Discovered new exit (range 0) 1 | -11/Scrapyard | Entered Materials 109 | -10/Materials | Discovered new exit (range 13) 314 | -10/Materials | Build established: Mutant 742 | -10/Materials | Discovered new exit (range 5) 860 | -10/Materials | Discovered new exit (range 15) 939 | -10/Materials | Discovered new exit (range 4) 1006 | -10/Materials | Entered Subcaves 1352 | -10/Subcaves | Learned Materials emergency access door positions 1407 | -10/Subcaves | Discovered new exit (range 10) 1490 | -10/Subcaves | Shifting Twisted Machinery released Piercing Trap 1686 | -10/Subcaves | Core integrity fell below 50% 1890 | -10/Subcaves | Core integrity fell below 20% 1895 | -10/Subcaves | Destroyed by K0-SJC(R) with Subdweller Beam Cannon Last Messages --------------- 01690_ D7-CA0(R) destroyed. 01693_ System corrupted: Energy discharge (-52). 01702_ RS-FRC(O) collects matter. 01703_ RS-FRC(O) puts together Sub. Laser. 01716_ Acquired Piercing Trap. 01752_ The unstable cave ceiling collapses. 01752_ Scrap Shield Fragment crushed. 01752_ The unstable cave ceiling collapses. 01755_ Acquired Sub. Laser. 01796_ W0AXX>PEWQWEYFPIQ#ZJ&M BY4J#&HXX 01826_ Installed Piercing Trap. 01827_ SZU8 UAWU3YRS,EWTRD1NCUNL,SUY5FBS/D6RT% 01870_ K0-SJC(R): "SUBMAD!" 01873_ Sneak attack on K0-SJC(R). 01873_ K0-SJC(R) knocked back. 01874_ Mak. Leg destroyed. 01882_ Sensor Array destroyed. 01885_ Acquired Wheel. 01885_ Grenade Launcher destroyed. 01890_ K0-SJC(R) knocked back. Map ----- +----------------------------------------------------+ | ?????????????????????????????????????????????????? | | ?????????????????????????????????????????????????? | | ??? ?????????????????????????????????????????????? | | ?? ?????????????????????????????????????????????? | | ?? #?????????????????????????????????????????????? | | ?? #?????????????????????????????????????????????? | | ?? ??????????????????????????????????????????????? | | ?? ??????????????????????????????????????????????? | | ? ###?????#?????????????????????????????????????? | | ? #???? #?????????????????????????????????????? | | ? #?### #?????????????????????????????????????? | | ? ## #?????????????????????????????????????? | | ? ## #?????????????????????????????????????? | | # #?# #?????????????????????????????????????? | | #### #?????????????????????????????????????? | | #??????????????????????????????????????? | | == #??????????????????????????????????????? | | ## #??????????????????????????????????????? | | ##### ####????????????###???????????????????????? | | #### ##???????????????# ####????????????????????? | | # # ##??????????????? #????????????????????? | | #???????????????# #???????????????? ?? | | # ##?????????????### ##??????????????# | | # #??????????????# R #?????????????# | | # ###??????????????# #???????????## | | # ##??????#####????## @ ##?????????? | | # #?????## #???## #######???? | | # ##?????# ##?#; ##??? | | #?????# ##; ### #??# # | | ####### #??#### #?## ? | | [# ## ## ## #?## #?# #??? | | ### " ### #?## ### #???? | | ### ##? #??### #?#### | | ### ## ###?? #????# ###?#"" | | =# #### ####???? #####???## #???#" | | "" #?# #?????? ##???????# #####" | | """ "#### #?????? #????????# ## | | """ ## "#??###?????? ????????# " ### # | | """#######??????????? ????????## ##?## #" | | ####???????????????? ?????????## ##???# #### | | ???????????????????? ? ??????????#######?# # | | ?????????????????????? ?????????????## ## | | ?????????????????????? ?????????????# | | ?????????????????????????????????????# | | ??????????????????????????????????#### | | ??????????????????????????????????# | | ??????????????????????????????????# ## | | ??????????????????????????????????## # | | ???????????????????????????????????### # | | ?????????????????????????????????????# | +----------------------------------------------------+ Best States ------------- Heat Dissipation 39 Energy Generation 10 Energy Capacity 250 Matter Stores 300 Matter Capacity 300 Sight Range 16 Robot Scan Range 14 Terrain Scan Density 10 Evasion (%) 55 Recoil Reduction 2 Item Schematics ----------------- None Robot Schematics ------------------ None Fabricated ------------ Nothing Alien Tech Used ----------------- None Achievements -------------- None Challenges ------------ None Game ------ Seed CoolingNodeMace Manual? 0 Play Time 00:11:59 Cumulative 678.7 hours Start 2024.02.28 @ 13:30:44 End 2024.02.28 @ 13:39:09 Sessions 1 Manual Loads 0 Difficulty Rogue Special Mode None Game No. 695 Rogue 420 Adventurer 123 Explorer 152 Win Type - Total 25 Types 19/0/4/1/0/0/0/1/0 Lore% 80 Gallery% 91 Achievement% 76 Wizard Run 0 Options --------- Layout 0 ASCII 0 Keyboard 1 Movement Numpad Keybinds 0 Fullscreen 2 Font 18/SmallcapsGlow Map View 76x50 Zoom Use 0% Tactical HUD 1 Map Filters NONE Filters NONE Steam 1 RUN: 9b52075a-afeb-4aa9-8793-043297959d65